bitfinex/quotes_SOLUSD_20241117
["timestamp","ask_amount","ask_price","bid_price","bid_amount"]
[1731818435180,37.05910529,235.71,235.66,0.1]
[1731818435378,37.05910529,235.71,235.54,82.9044]
[1731818435379,35.78640529,235.67,235.6,0.1]
[1731818435593,35.78640529,235.69,235.68,0.1]
[1731818435880,35.78640529,235.69,235.55,0.94864825]
[1731818435881,0.9711519,235.79,235.76,0.1]
[1731818436183,35.78640529,235.77,235.71,0.1]
[1731818436362,35.78640529,235.77,235.73,0.1]
[1731818436985,35.78640529,235.75,235.72,0.1]
[1731818437365,35.78640529,235.73,235.62,0.1]
[1731818437580,35.78640529,235.67,235.62,0.1]
[1731818437781,35.78640529,235.69,235.66,0.1]
[1731818437987,35.78640529,235.69,235.68,0.1]
[1731818438169,2.2434519,235.79,235.74,0.1]
[1731818438170,35.78640529,235.75,235.74,0.1]
[1731818438487,2.2434519,235.79,235.76,0.1]
[1731818438664,2.2434519,235.79,235.72,0.1]
[1731818439083,35.78640529,235.73,235.7,0.1]
[1731818439269,1.2726,235.73,235.7,0.1]
[1731818439467,0.9711519,235.79,235.7,0.1]
[1731818439468,35.78640529,235.71,235.7,0.1]
[1731818439676,35.78640529,235.73,235.72,0.1]
[1731818440094,35.78640529,235.73,235.68,0.1]
[1731818440380,35.78640529,235.72,235.7,0.1]
[1731818440610,35.78640529,235.74,235.72,0.1]
[1731818440779,35.78640529,235.73,235.71,0.1]
[1731818440978,35.78640529,235.72,235.71,0.1]
[1731818442987,35.78640529,235.74,235.73,0.1]
[1731818443190,2.2434519,235.79,235.71,0.1]
[1731818444095,0.9711519,235.79,235.75,0.1]
[1731818444299,35.78640529,235.76,235.73,0.1]
[1731818444477,35.78640529,235.74,235.71,0.1]
[1731818444673,35.78640529,235.72,235.71,0.1]
[1731818445069,37.05900529,235.72,235.68,0.1]
[1731818445301,35.78640529,235.69,235.63,0.1]
[1731818445608,1.2726,235.72,235.67,0.1]
[1731818445890,0.34465462,235.71,235.58,0.1]
[1731818446093,0.07381175,235.67,235.48,0.1]
[1731818446286,0.07381175,235.67,235.47,0.1]
[1731818446487,0.07381175,235.67,235.48,0.1]
[1731818446690,0.07381175,235.67,235.49,0.1]
[1731818446877,0.07381175,235.65,235.49,0.1]
[1731818447078,35.78640529,235.51,235.46,0.1]
[1731818447274,35.78640529,235.49,235.45,0.1]
[1731818447582,35.78640529,235.51,235.45,0.1]
[1731818447896,35.78640529,235.49,235.45,0.1]
[1731818448391,1.2732,235.61,235.47,0.1]
[1731818448600,35.78640529,235.58,235.55,0.1]
[1731818448781,1.2732,235.61,235.5,0.1]
[1731818448782,35.78640529,235.56,235.5,0.1]
[1731818448980,35.78640529,235.54,235.52,0.1]
[1731818449182,23.1819,235.71,235.45,4.247]
[1731818449183,1.2728,235.7,235.59,0.1]
[1731818449582,1.34661175,235.7,235.54,0.1]
[1731818449784,4.52861175,235.7,235.56,0.1]
[1731818450196,0.09367462,235.69,235.56,0.1]
[1731818450404,35.78640529,235.57,235.56,0.1]
[1731818450991,0.09367462,235.56,235.48,0.1]
[1731818451178,0.09367462,235.56,235.34,82.9044]
[1731818451179,6.3645,235.68,235.49,0.1]
[1731818451384,0.07381175,235.73,235.41,0.1]
[1731818451385,35.78640529,235.56,235.54,0.1]
[1731818451998,35.78640529,235.56,235.5,0.1]
[1731818452283,35.78640529,235.51,235.5,0.1]
[1731818452598,35.78640529,235.51,235.46,0.1]
[1731818452915,35.78640529,235.47,235.46,0.1]
[1731818453078,35.78640529,235.47,235.44,0.1]
[1731818453284,35.78640529,235.45,235.44,0.1]
[1731818454590,37.06050529,235.45,235.39,0.1]
[1731818454803,35.78640529,235.4,235.39,0.1]
[1731818455191,35.78640529,235.42,235.41,0.1]
[1731818456203,35.78640529,235.44,235.43,0.1]
[1731818456395,35.78640529,235.44,235.41,0.1]
[1731818456715,0.34465462,235.41,235.32,0.1]
[1731818457011,35.78640529,235.37,235.32,0.1]
[1731818457307,0.12549,235.42,235.34,0.1]
[1731818457513,35.78640529,235.35,235.32,0.1]
[1731818457802,35.78640529,235.33,235.29,0.1]
[1731818458002,0.21916462,235.41,235.27,0.1]
[1731818458003,35.78640529,235.3,235.27,0.1]
[1731818458183,35.78640529,235.32,235.31,0.1]
[1731818459191,1.2748,235.33,235.31,0.1]
[1731818459392,35.78640529,235.32,235.3,0.1]
[1731818459698,35.78640529,235.31,235.26,0.1]
[1731818459887,35.78640529,235.27,235.24,0.1]
[1731818460082,35.78640529,235.25,235.24,0.1]
[1731818460283,35.78640529,235.25,235.17,0.1]
[1731818460513,35.78640529,235.21,235.15,0.1]
[1731818460687,35.78640529,235.21,235.18,0.1]
[1731818460890,35.78640529,235.21,235.16,0.1]
[1731818461288,35.78640529,235.21,235.12,4.253]
[1731818461289,35.78640529,235.21,235.2,0.1]
[1731818461485,0.09367462,235.2,235.12,0.1]
[1731818461685,35.78640529,235.13,235.11,0.1]
[1731818461987,1.275,235.29,235.24,0.1]
[1731818462186,35.78640529,235.27,235.26,0.1]
[1731818462386,1.275,235.29,235.26,0.1]
[1731818462605,0.07381175,235.33,235.22,0.1]
[1731818462820,3.1868,235.34,235.22,0.1]
[1731818463008,3.1868,235.34,235.33,0.1]
[1731818463694,35.78640529,235.45,235.44,0.1]
[1731818463898,3.25801175,235.54,235.44,0.1]
[1731818463899,35.78640529,235.49,235.44,0.1]
[1731818464086,35.78640529,235.51,235.46,0.1]
[1731818464289,35.78640529,235.51,235.35,12.1825]
[1731818464290,8.41072346,235.58,235.51,0.1]
[1731818464497,1.34711175,235.59,235.51,0.1]
[1731818464706,1.34711175,235.59,235.32,70.84950851]
[1731818464707,0.07381175,235.49,235.37,0.1]
[1731818464918,0.07381175,235.49,235.23,0.1]
[1731818464919,0.07381175,235.38,235.23,0.1]
[1731818465119,0.07381175,235.38,235.11,0.1]
[1731818465120,0.07381175,235.38,235.25,0.1]
[1731818465287,0.07381175,235.36,235.25,0.1]
[1731818465495,35.78640529,235.27,235.22,0.1]
[1731818465704,35.78640529,235.24,235.22,0.1]
[1731818466220,0.2263238,235.38,235.32,0.1]
[1731818466504,0.2263238,235.38,235.27,0.1]
[1731818466505,35.78640529,235.34,235.27,0.1]
[1731818466689,35.78640529,235.3,235.29,0.1]
[1731818467115,0.09367462,235.29,235.21,0.1]
[1731818467302,35.78640529,235.22,235.21,0.1]
[1731818467610,35.78640529,235.25,235.24,0.1]
[1731818467992,35.78640529,235.25,235.22,0.1]
[1731818468214,35.78640529,235.28,235.26,0.1]
[1731818468506,35.78640529,235.28,235.16,4.2522]
[1731818468507,35.78640529,235.28,235.27,0.1]
[1731818468704,35.78640529,235.32,235.31,0.1]
[1731818468915,35.78640529,235.32,235.15,0.1]
[1731818468916,35.78640529,235.32,235.28,0.1]
[1731818469100,35.78640529,235.29,235.28,0.1]
[1731818469314,35.78640529,235.29,235.26,0.1]
[1731818469621,35.78640529,235.27,235.26,0.1]
[1731818469910,0.09367462,235.26,235.21,0.1]
[1731818470103,0.09367462,235.24,235.1,0.1]
[1731818470309,35.78640529,235.11,235.02,10.5972]
[1731818470498,35.78640529,235.03,234.85,0.1]
[1731818470701,35.78640529,234.89,234.81,4.2587]
[1731818470915,35.78640529,234.87,234.81,10.6468]
[1731818471105,35.78640529,234.83,234.76,8.39167194]
[1731818471308,35.78640529,234.79,234.68,0.1]
[1731818471510,35.78640529,234.77,234.65,35.98640529]
[1731818471712,35.78640529,234.77,234.62,70.0]
[1731818471713,35.78640529,234.81,234.77,17.013348]
[1731818472017,35.78640529,234.81,234.69,35.78640529]
[1731818472018,0.25098,234.77,234.54,0.2]
[1731818472321,35.78640529,234.66,234.54,35.88640529]
[1731818472616,1.278,234.73,234.54,0.1]
[1731818472804,35.78640529,234.64,234.54,0.1]
[1731818473004,1.278,234.73,234.48,48.33230529]
[1731818473005,35.78640529,234.6,234.48,48.33230529]
[1731818473204,35.78640529,234.58,234.49,0.1]
[1731818473407,35.78640529,234.67,234.6,0.1]
[1731818473604,35.78640529,234.67,234.54,0.1]
[1731818473605,35.78640529,234.69,234.62,0.1]
[1731818473798,35.78640529,234.67,234.58,0.1]
[1731818474026,35.78640529,234.74,234.65,0.1]
[1731818474317,35.78640529,234.74,234.63,0.1]
[1731818474614,35.78640529,234.7,234.61,4.2623]
[1731818474817,35.78640529,234.68,234.61,10.6559]
[1731818475405,35.78640529,234.66,234.58,0.1]
[1731818475606,35.78640529,234.68,234.61,0.1]
[1731818475921,35.78640529,234.7,234.63,0.1]
[1731818476417,35.78640529,234.74,234.63,0.1]
[1731818476720,35.78640529,234.74,234.67,0.1]
[1731818477113,35.78640529,234.74,234.65,0.1]
[1731818477421,35.78640529,234.67,234.63,10.655]
[1731818477619,35.78640529,234.69,234.63,14.917]
[1731818477793,35.78640529,234.71,234.63,13.2377]
[1731818477990,4.4705,234.87,234.63,8.9757]
[1731818477991,35.78640529,234.69,234.63,8.9757]
[1731818478201,35.78640529,234.65,234.51,4.2641]
[1731818478409,35.78640529,234.57,234.51,4.2641]
[1731818478704,35.78640529,234.57,234.47,10.6619]
[1731818479022,35.78640529,234.55,234.47,10.6619]
[1731818479311,0.1,234.67,234.5,0.1]
[1731818479312,35.78640529,234.57,234.5,0.1]
[1731818479520,35.78640529,234.59,234.5,0.1]
[1731818479722,35.78640529,234.63,234.55,0.1]
[1731818479921,35.78640529,234.71,234.62,0.1]
[1731818480216,35.78640529,234.71,234.6,35.88640529]
[1731818480802,35.78640529,234.71,234.61,4.2623]
[1731818481123,35.78640529,234.79,234.71,0.1]
[1731818481304,35.78640529,234.77,234.66,35.78640529]
[1731818481496,1.2772,234.88,234.68,0.1]
[1731818481798,35.78640529,234.78,234.68,0.1]
[1731818482501,35.78640529,234.8,234.68,35.88640529]
[1731818482699,0.1,234.98,234.79,35.78640529]
[1731818482906,35.78640529,234.84,234.73,0.1]
[1731818483104,35.78640529,234.88,234.78,0.1]
[1731818483307,0.17381175,234.91,234.69,14.9132]
[1731818483516,0.1,234.9,234.69,14.9132]
[1731818483717,0.07381175,234.88,234.69,14.9132]
[1731818484298,0.34465462,234.81,234.62,0.1]
[1731818484618,35.78640529,234.74,234.63,40.04830529]
[1731818484811,35.78640529,234.64,234.55,1.702941]
[1731818485332,0.25098,234.79,234.59,35.88640529]
[1731818485510,35.78640529,234.64,234.53,35.88640529]
[1731818485821,35.78640529,234.58,234.52,0.1]
[1731818486199,35.78640529,234.58,234.48,0.1]
[1731818486400,35.78640529,234.56,234.45,36.15290619]
[1731818486629,35.78640529,234.56,234.45,36.25290619]
[1731818486827,35.78640529,234.56,234.5,10.6609]
[1731818487123,35.78640529,234.59,234.5,10.6609]
[1731818487330,35.78640529,234.59,234.45,0.3665009]
[1731818487331,0.12549,234.5,234.45,0.3665009]
[1731818487627,35.78640529,234.46,234.4,0.1]
[1731818487813,35.78640529,234.5,234.4,0.1]
[1731818488013,35.78640529,234.48,234.38,0.1]
[1731818488515,35.78640529,234.5,234.42,0.1]
[1731818488706,35.78640529,234.5,234.41,14.931]
[1731818488908,35.78640529,234.48,234.41,14.931]
[1731818489422,35.78640529,234.52,234.44,0.1]
[1731818489600,35.78640529,234.52,234.41,14.931]
[1731818489601,35.78640529,234.52,234.41,50.71740529]
[1731818490010,35.78640529,234.5,234.41,14.931]
[1731818490301,35.78640529,234.52,234.41,50.71740529]
[1731818490627,35.78640529,234.54,234.44,0.1]
[1731818490828,0.17381175,234.71,234.48,35.78640529]
[1731818491031,35.78640529,234.57,234.45,35.78640529]
[1731818491319,35.78640529,234.53,234.45,10.6632]
[1731818491525,0.09367462,234.68,234.45,10.6632]
[1731818491526,35.78640529,234.51,234.45,10.6632]
[1731818491731,35.78640529,234.53,234.45,10.6632]
[1731818492024,35.78640529,234.55,234.46,0.1]
[1731818492614,0.21916462,234.68,234.47,14.9272]
[1731818492814,35.78640529,234.57,234.47,14.9272]
[1731818493118,35.78640529,234.57,234.48,0.1]
[1731818493426,35.78640529,234.57,234.47,14.9272]
[1731818493920,35.78640529,234.57,234.48,0.1]
[1731818494119,35.78640529,234.57,234.47,14.9272]
[1731818494507,30.78640529,234.57,234.47,14.9272]
[1731818494903,35.78640529,234.54,234.47,14.9272]
[1731818495528,1.278,234.73,234.5,0.1]
[1731818495708,35.78640529,234.61,234.5,0.1]
[1731818496026,35.78640529,234.63,234.52,0.1]
[1731818496209,1.2783,234.67,234.51,35.78640529]
[1731818496210,35.78640529,234.61,234.51,35.78640529]
[1731818496413,35.78640529,234.59,234.51,10.6605]
[1731818496623,35.78640529,234.61,234.51,10.6605]
[1731818496819,35.78640529,234.59,234.51,10.6605]
[1731818497233,35.78640529,234.53,234.47,4.2649]
[1731818497540,35.78640529,234.53,234.44,14.9285]
[1731818498045,35.78640529,234.47,234.39,4.2662]
[1731818498325,0.1,234.6,234.39,4.2662]
[1731818498326,35.78640529,234.49,234.39,4.2662]
[1731818498906,35.78640529,234.47,234.39,4.2662]
[1731818499314,35.78640529,234.47,234.39,14.9321]
[1731818499719,0.1,234.68,234.45,35.78640529]
[1731818499925,35.78640529,234.56,234.45,35.78640529]
[1731818500326,35.78640529,234.54,234.42,35.88640529]
[1731818500535,35.78640529,234.54,234.39,14.9321]
[1731818500536,0.1,234.67,234.43,0.1]
[1731818500840,35.78640529,234.53,234.42,35.78640529]
[1731818501017,35.78640529,234.57,234.45,0.12549]
[1731818501329,35.78640529,234.59,234.49,35.78640529]
[1731818502042,35.78640529,234.59,234.47,72.03820529]
[1731818503515,35.78640529,234.63,234.51,35.88640529]
[1731818503711,35.78640529,234.72,234.47,106.3518]
[1731818503712,35.78640529,234.61,234.49,35.88640529]
[1731818503930,35.78640529,234.59,234.49,35.78640529]
[1731818504121,35.78640529,234.61,234.5,0.1]
[1731818504514,35.78640529,234.65,234.56,0.1]
[1731818504711,35.78640529,234.65,234.48,0.85256588]
[1731818504712,35.78640529,234.65,234.53,0.1]
[1731818504934,35.78640529,234.63,234.51,35.88640529]
[1731818505146,35.78640529,234.59,234.49,35.78640529]
[1731818505634,35.78640529,234.55,234.5,14.9252]
[1731818505933,24.12153862,234.5,234.28,0.1]
[1731818506134,35.78640529,234.42,234.31,10.7696]
[1731818506320,35.78640529,234.44,234.32,35.78640529]
[1731818506515,35.78640529,234.46,234.34,35.78640529]
[1731818506725,8.57471391,234.59,234.34,35.78640529]
[1731818507033,35.78640529,234.43,234.32,35.78640529]
[1731818507715,35.78640529,234.43,234.3,35.78640529]
[1731818507929,35.78640529,234.41,234.3,35.78640529]
[1731818508841,35.78640529,234.37,234.26,35.78640529]
[1731818509032,35.78640529,234.35,234.24,35.78640529]
[1731818509221,35.78640529,234.37,234.26,35.78640529]
[1731818510640,3.1984,234.5,234.28,35.78640529]
[1731818510641,35.78640529,234.39,234.28,35.78640529]
[1731818511024,35.78640529,234.43,234.34,35.78640529]
[1731818511340,35.78640529,234.36,234.25,35.78640529]
[1731818511714,35.78640529,234.38,234.27,35.78640529]
[1731818512519,35.78640529,234.38,234.28,23.776884]
[1731818512714,35.78640529,234.36,234.25,105.78640529]
[1731818513526,35.78640529,234.35,234.25,35.78640529]
[1731818513819,35.78640529,234.37,234.27,35.78640529]
[1731818514031,35.78640529,234.43,234.33,35.78640529]
[1731818514221,35.78640529,234.45,234.35,35.78640529]
[1731818514421,35.78640529,234.45,234.34,0.1]
[1731818514422,35.78640529,234.47,234.37,35.78640529]
[1731818514721,35.78640529,234.51,234.39,35.78640529]
[1731818514922,35.78640529,234.49,234.39,35.78640529]
[1731818515146,35.88007991,234.54,234.33,35.78640529]
[1731818515335,35.78640529,234.41,234.29,35.78640529]
[1731818515536,35.78640529,234.43,234.31,35.78640529]
[1731818516040,35.78640529,234.43,234.26,0.1]
[1731818516041,35.78640529,234.41,234.29,35.78640529]
[1731818516246,35.78640529,234.39,234.27,35.78640529]
[1731818516542,35.78640529,234.3,234.2,35.88640529]
[1731818517045,0.32479175,234.45,234.2,35.88640529]
[1731818517046,35.78640529,234.32,234.2,35.88640529]
[1731818517221,35.78640529,234.34,234.24,35.78640529]
[1731818517424,35.78640529,234.27,234.17,0.1]
[1731818517622,35.78640529,234.29,234.18,35.78640529]
[1731818518027,35.78640529,234.31,234.2,35.78640529]
[1731818518819,36.14782552,234.29,234.18,36.14782552]
[1731818520425,36.14782552,234.31,234.2,36.14782552]
[1731818520730,36.14782552,234.33,234.22,36.14782552]
[1731818520936,36.14782552,234.34,234.22,36.14782552]
[1731818521149,36.14782552,234.32,234.2,36.14782552]
[1731818521324,1.2798,234.41,234.18,70.0]
[1731818521325,36.14782552,234.41,234.3,36.14782552]
[1731818521648,36.14782552,234.44,234.34,36.14782552]
[1731818522059,9.5892,234.64,234.4,36.14782552]
[1731818522234,36.14782552,234.55,234.42,36.14782552]
[1731818522633,44.4598,234.69,234.54,36.14782552]
[1731818522634,13.0554,234.69,234.54,36.14782552]
[1731818522938,36.14782552,234.66,234.55,36.14782552]
[1731818523323,13.0554,234.8,234.64,106.14782552]
[1731818523529,1.2771,234.9,234.65,23.776884]
[1731818523734,6.66713404,234.92,234.74,23.902374]
[1731818523933,0.1,234.95,234.67,70.0]
[1731818524136,0.1,234.92,234.69,23.776884]
[1731818524329,1.3769,234.94,234.69,23.776884]
[1731818524557,36.14782552,234.82,234.7,36.14782552]
[1731818524851,36.14782552,234.8,234.68,51.06172552]
[1731818525048,36.14782552,234.82,234.7,36.14782552]
[1731818525255,36.14782552,234.8,234.68,51.06172552]
[1731818525833,45.82344254,234.8,234.68,60.73734254]
[1731818526253,45.82344254,234.82,234.7,45.82344254]
[1731818526756,45.82344254,234.78,234.68,14.9139]
[1731818527533,45.82344254,234.74,234.61,45.82344254]
[1731818528051,45.82344254,234.74,234.53,45.82344254]
[1731818528052,45.82344254,234.65,234.53,45.82344254]
[1731818528477,45.82344254,234.63,234.51,45.82344254]
[1731818528779,45.82344254,234.53,234.36,70.0]
[1731818529051,45.82344254,234.51,234.4,45.82344254]
[1731818529236,45.82344254,234.51,234.31,12.5236]
[1731818529237,45.82344254,234.51,234.38,45.82344254]
[1731818529560,45.82344254,234.51,234.4,45.82344254]
[1731818529765,45.82344254,234.49,234.38,45.82344254]
[1731818530445,45.82344254,234.5,234.38,45.82344254]
[1731818530832,45.82344254,234.52,234.4,45.82344254]
[1731818531034,1.2787,234.6,234.42,45.82344254]
[1731818531233,45.82344254,234.57,234.46,45.98966104]
[1731818531454,45.82344254,234.57,234.46,0.1662185]
[1731818531830,45.82344254,234.55,234.46,0.1662185]
[1731818532034,45.82344254,234.49,234.46,0.1662185]
[1731818532258,45.82344254,234.51,234.46,0.1662185]
[1731818532854,45.82344254,234.53,234.46,0.1662185]
[1731818533357,45.82344254,234.51,234.46,0.1662185]
[1731818536167,45.82344254,234.47,234.46,0.1662185]
[1731818536644,45.82344254,234.51,234.46,0.1662185]
[1731818537141,45.94893254,234.47,234.46,0.1662185]
[1731818538193,47.22833254,234.47,234.46,0.1662185]
[1731818538654,47.54749716,234.47,234.46,0.1662185]
[1731818538840,1.72405462,234.47,234.46,0.1662185]
[1731818539044,47.35382254,234.47,234.46,0.1662185]
[1731818539236,47.22833254,234.47,234.46,0.1662185]
[1731818539644,0.1,234.58,234.46,0.1662185]
[1731818539941,45.82344254,234.48,234.46,0.1662185]
[1731818540139,1.37307462,234.47,234.46,0.1662185]
[1731818540445,47.10284254,234.47,234.35,45.82344254]
[1731818541557,45.82344254,234.47,234.36,4.2669]
[1731818541756,45.82344254,234.51,234.4,45.82344254]
[1731818541970,0.1,234.57,234.36,14.9342]
[1731818541971,45.82344254,234.47,234.36,14.9342]
[1731818542139,6.3935,234.61,234.25,0.1]
[1731818542140,45.82344254,234.42,234.33,45.82344254]
[1731818542738,45.82344254,234.45,234.3,10.6699]
[1731818542953,45.82344254,234.51,234.4,45.82344254]
[1731818543350,45.82344254,234.49,234.38,45.82344254]
[1731818543652,1.2794,234.48,234.38,45.82344254]
[1731818543850,1.2794,234.48,234.4,45.82344254]
[1731818544258,1.2785,234.65,234.46,45.82344254]
[1731818544458,1.2785,234.65,234.58,45.82344254]
[1731818544664,45.82344254,234.61,234.5,45.82344254]
[1731818544843,45.82344254,234.57,234.42,12.65]
[1731818545158,0.1,234.6,234.36,14.9341]
[1731818545540,23.902374,234.58,234.36,10.6673]
[1731818545764,0.1,234.54,234.36,10.6673]
[1731818545936,0.09367462,234.53,234.36,10.6673]
[1731818546143,0.09367462,234.51,234.41,45.82344254]
[1731818546339,45.82344254,234.54,234.43,45.82344254]
[1731818546749,1.2791,234.53,234.43,45.82344254]
[1731818546962,1.2791,234.53,234.45,45.82344254]
[1731818547666,1.279,234.55,234.45,45.82344254]
[1731818549142,1.2786,234.63,234.5,45.82344254]
[1731818549464,45.82344254,234.52,234.42,45.82344254]
[1731818550470,0.21916462,234.49,234.38,45.82344254]
[1731818550767,45.82344254,234.48,234.37,10.6667]
[1731818551146,1.2794,234.47,234.37,10.6667]
[1731818551749,1.2794,234.47,234.38,45.82344254]
[1731818552163,45.82344254,234.5,234.38,45.82344254]
[1731818552371,1.2792,234.52,234.45,45.82344254]
[1731818553052,1.2792,234.52,234.43,45.82344254]
[1731818553351,0.09367462,234.51,234.41,45.82344254]
[1731818553560,0.21916462,234.51,234.41,45.82344254]
[1731818553746,0.09367462,234.51,234.41,45.82344254]
[1731818554856,1.2793,234.5,234.41,45.82344254]
[1731818555949,47.10224254,234.58,234.47,45.82344254]
[1731818556163,1.2788,234.58,234.47,45.82344254]
[1731818556468,47.10224254,234.58,234.47,45.82344254]
[1731818556858,1.2788,234.58,234.47,45.82344254]
[1731818557360,1.2788,234.58,234.49,45.82344254]
[1731818557949,47.10224254,234.58,234.47,45.82344254]
[1731818559257,1.279,234.55,234.45,45.82344254]
[1731818559569,1.279,234.55,234.44,45.82344254]
[1731818559746,8.32525248,234.59,234.41,4.2659]
[1731818559747,45.82344254,234.6,234.41,4.2659]
[1731818559947,12.4298,234.7,234.57,45.82344254]
[1731818560148,58.25324254,234.7,234.59,45.82344254]
[1731818560572,47.10114254,234.78,234.65,45.82344254]
[1731818560759,45.82344254,234.76,234.63,45.82344254]
[1731818561069,45.82344254,234.74,234.63,45.82344254]
[1731818561274,1.2781,234.71,234.61,45.82344254]
[1731818561654,45.82344254,234.7,234.58,14.92]
[1731818561855,45.82344254,234.68,234.58,10.6571]
[1731818562049,45.82344254,234.64,234.53,50.08704254]
[1731818562451,45.82344254,234.66,234.55,45.82344254]
[1731818562671,45.82344254,234.68,234.57,45.82344254]
[1731818562851,45.82344254,234.66,234.55,45.82344254]
[1731818563549,45.82344254,234.66,234.56,4.2633]
[1731818563775,47.10184254,234.66,234.55,45.82344254]
[1731818564082,47.10184254,234.66,234.55,50.08674254]
[1731818564253,1.2782,234.69,234.59,45.82344254]
[1731818564449,45.82344254,234.66,234.55,60.74544254]
[1731818564963,1.2782,234.69,234.48,21.3235]
[1731818564964,45.82344254,234.64,234.53,50.08714254]
[1731818565166,0.07381175,234.78,234.48,70.0]
[1731818565167,45.82344254,234.7,234.59,45.82344254]
[1731818565571,45.82344254,234.68,234.57,45.82344254]
[1731818565775,45.87531928,234.66,234.55,14.9221]
[1731818566273,45.87531928,234.62,234.52,45.87531928]
[1731818566476,45.87531928,234.64,234.52,45.87531928]
[1731818566774,45.87531928,234.64,234.5,14.9252]
[1731818566956,45.87531928,234.64,234.52,45.87531928]
[1731818567481,1.2786,234.63,234.52,45.87531928]
[1731818567782,45.87531928,234.6,234.5,56.53621928]
[1731818567976,45.87531928,234.6,234.5,45.87531928]
[1731818568474,45.87531928,234.56,234.46,45.87531928]
[1731818568973,45.87531928,234.52,234.4,10.6654]
[1731818569181,45.87531928,234.52,234.42,45.87531928]
[1731818569367,45.87531928,234.52,234.38,45.87531928]
[1731818569368,1.2794,234.48,234.38,45.87531928]
[1731818572562,45.9330784,234.53,234.43,45.9330784]
[1731818573282,1.279,234.55,234.45,45.9330784]
[1731818573580,47.2120784,234.55,234.45,45.9330784]
[1731818573794,45.9330784,234.57,234.47,45.9330784]
[1731818574078,45.9330784,234.55,234.45,45.9330784]
[1731818574276,45.9330784,234.55,234.43,45.9330784]
[1731818574483,0.1,234.58,234.43,45.9330784]
[1731818574484,45.9330784,234.53,234.43,45.9330784]
[1731818574862,45.9330784,234.53,234.39,45.9330784]
[1731818574863,45.9330784,234.49,234.39,45.9330784]
[1731818575380,45.9330784,234.49,234.37,45.9330784]
[1731818575715,45.9330784,234.49,234.39,45.9330784]
[1731818575716,1.2794,234.48,234.39,45.9330784]
[1731818576479,1.2794,234.48,234.35,14.9347]
[1731818576781,45.9330784,234.41,234.25,8.59249758]
[1731818577084,45.9330784,234.39,234.29,45.9330784]
[1731818577266,45.9330784,234.39,234.27,45.9330784]
[1731818577462,0.1,234.43,234.24,4.2691]
[1731818577463,45.9330784,234.37,234.24,4.2691]
[1731818577665,1.28,234.36,234.27,45.9330784]
[1731818578896,0.1,234.45,234.27,45.9330784]
[1731818578897,1.2796,234.44,234.35,45.9330784]
[1731818579260,1.2796,234.44,234.27,10.6714]
[1731818579261,45.9330784,234.4,234.27,10.6714]
[1731818579468,45.9330784,234.38,234.27,56.6044784]
[1731818579873,45.9330784,234.4,234.29,45.9330784]
[1731818580090,47.2126784,234.44,234.33,45.9330784]
[1731818580677,45.9330784,234.42,234.31,45.9330784]
[1731818580989,45.9330784,234.38,234.27,56.6044784]
[1731818581174,6.42617485,234.63,234.38,44.027864]
[1731818581377,47.2116784,234.62,234.51,45.9330784]
[1731818582695,1.2786,234.62,234.55,45.9330784]
[1731818583257,45.9330784,234.68,234.57,45.9330784]
[1731818583881,6.42617485,234.84,234.68,0.09367462]
[1731818584084,223.63447132,234.94,234.68,0.09367462]
[1731818584085,6.42617485,234.95,234.85,20.0]
[1731818584285,25.68684958,235.04,234.89,0.12549]
[1731818584286,0.4656472,235.04,234.89,0.12549]
[1731818584504,12.98009956,235.15,234.96,43.776884]
[1731818584782,1.2751,235.27,235.08,20.0]
[1731818585191,0.4656472,235.28,235.09,23.776884]
[1731818585398,1.7406472,235.28,235.1,20.0]
[1731818585898,0.4656472,235.28,235.26,45.9330784]
[1731818586878,1.7407472,235.28,235.26,45.9330784]
[1731818587085,1.7407472,235.28,235.24,45.9330784]
[1731818587316,1.7407472,235.28,235.22,45.9330784]
[1731818587602,0.4656472,235.28,235.27,45.9330784]
[1731818589996,0.4656472,235.28,235.23,45.9330784]
[1731818590900,0.4656472,235.28,235.27,45.9330784]
[1731818594010,0.17381175,235.58,235.28,30.6256]
[1731818594191,1.7394472,235.52,235.42,45.9330784]
[1731818594388,45.9330784,235.51,235.4,45.9330784]
[1731818594790,1.7394472,235.52,235.4,45.9330784]